bitfinex/quotes_BTCUSD_20251114
["timestamp","ask_amount","ask_price","bid_price","bid_amount"]
[1763095337565,0.87236105,97440.0,97381.0,0.04408]
[1763095337725,0.87236105,97440.0,97380.0,0.1006426]
[1763095337726,0.09919,97441.0,97401.0,0.1006426]
[1763095337933,0.1006426,97439.0,97401.0,0.10058092]
[1763095338137,0.1006426,97439.0,97380.0,0.1006426]
[1763095338138,0.00022741,97402.0,97380.0,0.1006426]
[1763095338437,0.00077095,97400.0,97395.0,0.1006426]
[1763095338666,0.00022741,97402.0,97395.0,0.1006426]
[1763095339070,0.00022741,97402.0,97390.0,0.87236105]
[1763095339225,0.00022741,97402.0,97383.0,0.20537465]
[1763095339492,0.00022741,97402.0,97401.0,0.1006426]
[1763095339668,2.0,97459.0,97420.0,0.01026483]
[1763095339874,2.0,97458.0,97410.0,0.88262693]
[1763095340239,2.0,97458.0,97410.0,0.01026588]
[1763095340785,0.323,97457.0,97415.0,0.20530719]
[1763095340994,0.00045805,97459.0,97410.0,0.88262693]
[1763095341195,2.0,97458.0,97410.0,0.88262693]
[1763095341517,0.00045805,97459.0,97420.0,0.88262588]
[1763095341671,0.00045805,97459.0,97429.0,0.20527733]
[1763095341870,0.00045805,97459.0,97420.0,0.88262588]
[1763095342089,0.00045805,97459.0,97424.0,0.2052862]
[1763095342329,0.00045805,97459.0,97443.0,0.1006426]
[1763095342499,0.00045805,97459.0,97444.0,0.1006426]
[1763095342839,0.00045805,97459.0,97431.0,0.1006426]
[1763095343045,0.36687679,97459.0,97410.0,0.1006426]
[1763095343265,0.36687679,97459.0,97432.0,0.1006426]
[1763095343266,0.36641874,97457.0,97432.0,0.1006426]
[1763095343449,0.36641874,97457.0,97411.0,0.20531369]
[1763095343676,0.36641874,97457.0,97428.0,0.1006426]
[1763095343892,0.36641874,97457.0,97410.0,1.18858636]
[1763095343893,0.00045805,97459.0,97430.0,0.87236105]
[1763095344122,0.00045805,97459.0,97440.0,0.87236105]
[1763095344342,0.00045805,97459.0,97431.0,0.04408]
[1763095344562,0.00045805,97459.0,97412.0,0.20531209]
[1763095344779,0.87236105,97450.0,97407.0,0.02138]
[1763095344989,0.04341874,97439.0,97410.0,0.87236105]
[1763095345224,0.36641874,97449.0,97400.0,0.01026694]
[1763095345424,0.04341874,97447.0,97421.0,0.1006426]
[1763095345592,0.04341874,97455.0,97421.0,0.1006426]
[1763095345975,0.04341874,97457.0,97421.0,0.1006426]
[1763095346179,0.36641874,97457.0,97406.0,0.1006426]
[1763095346387,0.04341874,97455.0,97422.0,0.1006426]
[1763095347235,0.36641874,97449.0,97406.0,0.1006426]
[1763095347453,0.87236105,97440.0,97406.0,0.1006426]
[1763095347613,0.00045805,97459.0,97427.0,0.1006426]
[1763095348022,0.04341874,97449.0,97427.0,0.1006426]
[1763095348435,0.04341874,97449.0,97410.0,0.01026588]
[1763095348436,0.04341874,97449.0,97428.0,0.1006426]
[1763095348635,0.04341874,97456.0,97428.0,0.1006426]
[1763095348800,0.04341874,97456.0,97429.0,0.1006426]
[1763095348977,0.04341874,97456.0,97431.0,0.2052717]
[1763095349187,0.00045805,97459.0,97432.0,0.20527136]
[1763095349497,2.0,97467.0,97420.0,0.64490515]
[1763095349699,0.00013732,97467.0,97437.0,0.1006426]
[1763095349923,0.00013732,97467.0,97452.0,0.1006426]
[1763095350287,0.00013732,97467.0,97437.0,0.1006426]
[1763095351054,0.59056032,97460.0,97421.0,0.1006426]
[1763095351230,0.59056032,97460.0,97404.0,0.04408]
[1763095351231,0.59056032,97450.0,97422.0,0.1006426]
[1763095351436,0.59056032,97450.0,97423.0,0.1006426]
[1763095351642,0.04341874,97449.0,97423.0,0.1006426]
[1763095351843,0.36641874,97449.0,97423.0,0.1006426]
[1763095352448,0.36641874,97449.0,97406.0,0.1006426]
[1763095352817,0.36641874,97449.0,97422.0,0.1006426]
[1763095353186,0.36641874,97449.0,97410.0,0.6008262]
[1763095353187,0.36641874,97449.0,97410.0,0.01026588]
[1763095353408,0.36641874,97449.0,97424.0,0.1006426]
[1763095353602,0.36641874,97449.0,97425.0,0.1006426]
[1763095354360,0.04341874,97439.0,97395.0,0.20534827]
[1763095354783,0.04341874,97432.0,97407.0,0.1006426]
[1763095354917,0.04341874,97439.0,97407.0,0.1006426]
[1763095355322,0.00999999,97490.0,97407.0,0.1006426]
[1763095355323,0.09079,97465.0,97423.0,0.20529033]
[1763095355521,0.01827897,97464.0,97437.0,0.1006426]
[1763095355746,0.59076032,97470.0,97437.0,0.1006426]
[1763095355949,0.59076032,97470.0,97452.0,0.1006426]
[1763095355950,0.00033732,97470.0,97452.0,0.1006426]
[1763095356121,0.00033732,97470.0,97454.0,0.20522393]
[1763095356327,0.00033732,97470.0,97452.0,0.1006426]
[1763095356526,0.00033732,97470.0,97467.0,0.1006426]
[1763095356926,0.00033732,97470.0,97452.0,0.1006426]
[1763095357129,0.59089764,97470.0,97452.0,0.1006426]
[1763095357328,0.00033732,97470.0,97454.0,0.1006426]
[1763095358068,0.04341874,97469.0,97437.0,0.1006426]
[1763095358245,0.04341874,97467.0,97437.0,0.1006426]
[1763095358458,0.04341874,97449.0,97438.0,0.1006426]
[1763095358780,0.04341874,97449.0,97422.0,0.1006426]
[1763095358990,0.04341874,97447.0,97424.0,0.1006426]
[1763095359193,0.04341874,97445.0,97424.0,0.1006426]
[1763095359403,0.04341874,97443.0,97425.0,0.1006426]
[1763095359547,0.04341874,97443.0,97375.0,0.41078127]
[1763095359548,0.59056032,97440.0,97373.0,0.323]
[1763095359753,0.0617916,97439.0,97406.0,0.1006426]
[1763095359958,0.04341874,97429.0,97406.0,0.1006426]
[1763095360164,0.04341874,97427.0,97421.0,0.1006426]
[1763095360376,0.04341874,97425.0,97406.0,0.1006426]
[1763095360587,0.04341874,97425.0,97410.0,0.20531565]
[1763095360802,0.04341874,97439.0,97406.0,0.10110065]
[1763095361136,0.09079,97460.0,97421.0,0.1006426]
[1763095361137,0.04341874,97437.0,97421.0,0.1006426]
[1763095361547,0.59056032,97440.0,97406.0,0.10110065]
[1763095361548,0.04341874,97439.0,97422.0,0.1006426]
[1763095361750,0.04341874,97431.0,97406.0,0.10110065]
[1763095361931,0.04341874,97429.0,97407.0,0.1006426]
[1763095362136,2.323,97419.0,97406.0,0.00045805]
[1763095362384,0.36641874,97414.0,97406.0,0.00045805]
[1763095362754,0.04341874,97412.0,97406.0,0.00045805]
[1763095362904,0.04341874,97410.0,97406.0,0.00045805]
[1763095363089,0.04341874,97408.0,97406.0,0.00045805]
[1763095363264,0.09079,97415.0,97406.0,0.00045805]
[1763095363265,0.061828,97407.0,97406.0,0.00045805]
[1763095363469,0.36641874,97404.0,97347.0,0.1006426]
[1763095363671,0.04341874,97379.0,97347.0,0.10078001]
[1763095363927,0.59056032,97360.0,97347.0,0.00013741]
[1763095364149,0.36641874,97369.0,97347.0,0.00013741]
[1763095364362,0.08986874,97348.0,97347.0,0.00013741]
[1763095364583,0.10824468,97348.0,97347.0,0.00013741]
[1763095364818,0.36641874,97345.0,97300.0,0.0004]
[1763095365042,0.04341874,97319.0,97301.0,0.00045675]
[1763095365486,0.36641874,97326.0,97301.0,0.00045675]
[1763095365838,0.59056032,97340.0,97302.0,0.30618668]
[1763095365992,0.36641874,97337.0,97302.0,0.07252621]
[1763095366194,0.04341874,97335.0,97302.0,0.07252621]
[1763095366477,0.04341874,97333.0,97304.0,0.20554002]
[1763095366623,0.04341874,97333.0,97302.0,0.07252621]
[1763095366933,0.04341874,97319.0,97301.0,0.00045675]
[1763095367152,0.04341874,97326.0,97301.0,0.00045675]
[1763095367496,0.36641874,97319.0,97301.0,0.00045675]
[1763095367906,0.09079,97345.0,97302.0,0.1006426]
[1763095368109,0.323,97357.0,97317.0,0.1006426]
[1763095368258,0.13724,97348.0,97318.0,0.1006426]
[1763095368488,0.04645,97355.0,97310.0,0.60083675]
[1763095368646,0.59056032,97340.0,97301.0,0.00045675]
[1763095368848,0.323,97339.0,97303.0,0.1006426]
[1763095369166,0.04341874,97338.0,97303.0,0.1006426]
[1763095369503,0.04341874,97336.0,97303.0,0.1006426]
[1763095369844,0.13420874,97336.0,97303.0,0.1006426]
[1763095370241,0.13420874,97336.0,97303.0,0.30618587]
[1763095370443,0.04341874,97333.0,97304.0,0.1006426]
[1763095370646,0.36641874,97329.0,97306.0,0.1006426]
[1763095370820,0.36641874,97329.0,97325.0,0.20009687]
[1763095371228,0.36641874,97327.0,97301.0,0.00045675]
[1763095371592,0.36641874,97327.0,97302.0,0.30618747]
[1763095371797,0.36641874,97327.0,97302.0,0.1006426]
[1763095371992,0.00034252,97326.0,97317.0,0.1006426]
[1763095372196,0.00034252,97326.0,97323.0,0.20550126]
[1763095372446,0.00034252,97326.0,97325.0,0.20549704]
[1763095372651,0.00034252,97326.0,97325.0,0.20540132]
[1763095373320,0.04645,97414.0,97370.0,0.59056032]
[1763095373648,0.59056032,97410.0,97370.0,0.0102701]
[1763095374012,0.09079,97409.0,97370.0,0.0102701]
[1763095374405,0.09092731,97409.0,97374.0,0.1006426]
[1763095374615,0.59056032,97390.0,97351.0,0.20544216]
[1763095374766,0.1006426,97388.0,97355.0,0.1006426]
[1763095374966,0.04341874,97387.0,97351.0,0.1006426]
[1763095375225,0.04341874,97385.0,97351.0,0.1006426]
[1763095375423,0.04341874,97385.0,97340.0,0.59056032]
[1763095375626,0.04341874,97385.0,97333.0,0.1006426]
[1763095375627,0.04341874,97372.0,97333.0,0.1006426]
[1763095375828,0.04341874,97356.0,97310.0,0.59056032]
[1763095376060,0.04341874,97349.0,97318.0,0.1006426]
[1763095376235,0.04341874,97349.0,97320.0,0.59056032]
[1763095376388,0.04341874,97354.0,97320.0,0.59056032]
[1763095376600,0.00536781,97386.0,97320.0,0.59056032]
[1763095376601,0.36641874,97366.0,97340.0,0.59056032]
[1763095376803,0.36641874,97366.0,97365.0,0.20001467]
[1763095377004,0.36641874,97366.0,97365.0,0.17601467]
[1763095378135,0.04645,97383.0,97365.0,0.17601467]
[1763095378342,0.00999999,97420.0,97340.0,0.59061527]
[1763095378343,2.0,97402.0,97368.0,0.1006426]
[1763095378538,2.0,97402.0,97350.0,0.60083253]
[1763095378747,0.59056032,97410.0,97360.0,0.01027115]
[1763095378946,0.59056032,97400.0,97361.0,0.20542106]
[1763095379218,0.09079,97401.0,97360.0,0.01027115]
[1763095379421,0.59056032,97380.0,97340.0,5.495e-05]
[1763095379579,2.0,97389.0,97340.0,0.80635278]
[1763095379752,0.36641874,97379.0,97342.0,0.20546014]
[1763095379949,0.04341874,97380.0,97352.0,0.1006426]
[1763095380247,0.323,97388.0,97352.0,0.1006426]
[1763095380391,0.04645,97430.0,97370.0,0.60083042]
[1763095380392,0.09056,97407.0,97370.0,0.60083042]
[1763095380597,0.09056,97407.0,97352.0,0.1006426]
[1763095380598,0.59056032,97390.0,97352.0,0.1006426]
[1763095380807,0.323,97379.0,97330.0,0.59056032]
[1763095381012,0.36641874,97367.0,97339.0,0.1006426]
[1763095381266,0.36641874,97389.0,97354.0,0.1006426]
[1763095381451,0.04341874,97368.0,97318.0,0.30615282]
[1763095381784,0.01825717,97388.0,97318.0,0.30615282]
[1763095381785,0.09069726,97389.0,97353.0,0.1006426]
[1763095381939,0.00013726,97389.0,97370.0,0.1006426]
[1763095382149,0.00013726,97389.0,97370.0,0.69120292]
[1763095382358,0.00013726,97389.0,97386.0,0.20536729]
[1763095382701,0.00013726,97389.0,97388.0,0.30600671]
[1763095383223,0.00013726,97389.0,97388.0,0.30587246]
[1763095383878,0.09056,97461.0,97420.0,0.01026483]
[1763095384086,0.1006426,97455.0,97420.0,0.01026483]
[1763095384281,0.1006426,97455.0,97406.0,0.1006426]
[1763095384282,0.59056032,97440.0,97406.0,0.1006426]
[1763095384499,0.59056032,97430.0,97407.0,0.1006426]
[1763095384738,0.09056,97435.0,97407.0,0.10053902]
[1763095385207,0.1006426,97455.0,97410.0,0.6008262]
[1763095385380,0.1006426,97455.0,97426.0,0.205282]
[1763095385551,0.09056,97456.0,97430.0,0.2052754]
[1763095385727,0.09056,97456.0,97410.0,0.6008262]
[1763095385931,0.00045805,97457.0,97423.0,0.10056821]
[1763095386181,0.00045805,97457.0,97438.0,0.1006426]
[1763095386403,0.00045805,97457.0,97451.0,0.20523015]
[1763095386709,0.001,97455.0,97439.0,0.20525662]
[1763095386828,0.001,97455.0,97438.0,0.1006426]
[1763095387033,0.00045805,97457.0,97438.0,0.1006426]
[1763095387247,0.00045805,97457.0,97456.0,0.1006426]
[1763095387454,0.00145805,97457.0,97456.0,0.10054709]
[1763095388735,0.00045805,97457.0,97456.0,0.10054709]
[1763095388964,0.00045805,97457.0,97456.0,0.10041721]
[1763095389901,0.00045805,97457.0,97456.0,0.10141721]
[1763095390364,0.00045805,97457.0,97456.0,0.10041721]
[1763095390849,0.00045805,97457.0,97456.0,0.10141721]
[1763095392697,0.00045805,97457.0,97456.0,0.10041721]
[1763095393241,0.00045805,97457.0,97456.0,0.10341721]
[1763095393508,0.00045805,97457.0,97456.0,0.10041721]
[1763095393738,0.00045805,97457.0,97456.0,0.1006426]
[1763095393928,0.00045805,97457.0,97456.0,0.003]
[1763095394406,0.00045805,97457.0,97440.0,0.59056032]
[1763095394837,0.00045805,97457.0,97456.0,0.1016426]
[1763095395075,0.00045805,97457.0,97456.0,0.27749315]
[1763095395758,0.00045805,97457.0,97456.0,0.27649315]
[1763095396728,0.00045805,97457.0,97456.0,0.27749315]
[1763095396963,1e-08,97470.0,97457.0,0.20521871]
[1763095397198,0.00013735,97470.0,97469.0,0.20519344]
[1763095399056,0.00113735,97470.0,97469.0,0.20519344]
[1763095399273,0.0002,97490.0,97489.0,0.20515135]
[1763095399712,0.0002,97490.0,97489.0,0.30579395]
[1763095400227,2.58659336,97500.0,97499.0,0.2051303]
[1763095400427,2.58659336,97500.0,97497.0,0.20513432]
[1763095400428,2.58673058,97500.0,97497.0,0.20513432]
[1763095401121,2.58673058,97500.0,97499.0,0.2051303]
[1763095401366,1.89029927,97500.0,97499.0,0.5281303]
[1763095401595,0.93794481,97500.0,97499.0,2.5281303]
[1763095401824,0.90715095,97500.0,97499.0,2.5281303]
[1763095402068,0.85155217,97500.0,97499.0,2.5281303]
[1763095402309,9e-05,97534.0,97529.0,0.20506721]
[1763095402562,0.0003372,97530.0,97525.0,0.01013303]
[1763095402783,0.0003372,97530.0,97529.0,0.38078614]
[1763095403643,8.358e-05,97550.0,97540.0,0.20504308]
[1763095403842,8.358e-05,97550.0,97520.0,0.24152302]
[1763095403843,8.358e-05,97550.0,97547.0,0.1006426]
[1763095404088,8.358e-05,97550.0,97547.0,0.0001372]
[1763095405459,0.36641874,97548.0,97489.0,0.1006426]
[1763095405660,0.04341874,97522.0,97489.0,0.1006426]
[1763095405862,0.04341874,97519.0,97489.0,0.1006426]
[1763095406279,0.09274874,97519.0,97475.0,0.1006426]
[1763095406611,0.09274874,97519.0,97480.0,0.59056032]
[1763095406814,0.09274874,97519.0,97480.0,0.60081883]
[1763095407017,0.04341874,97522.0,97480.0,0.60081883]
[1763095407217,0.1006426,97508.0,97475.0,0.1006426]
[1763095407420,0.04341874,97507.0,97475.0,0.1006426]
[1763095407622,0.04341874,97519.0,97490.0,0.1006426]
[1763095407869,0.04341874,97519.0,97490.0,0.69120292]
[1763095408075,0.04341874,97517.0,97475.0,0.1006426]
[1763095408251,0.04341874,97517.0,97491.0,0.1006426]
[1763095408460,0.04341874,97518.0,97513.0,0.2051008]
[1763095408661,0.001,97519.0,97492.0,0.20514503]
[1763095408844,0.59056032,97530.0,97488.0,0.02297722]
[1763095409042,0.86517228,97510.0,97488.0,0.00013722]
[1763095409242,0.86517228,97498.0,97488.0,0.00013722]
[1763095409428,0.00999999,97530.0,97488.0,0.00013722]
[1763095409429,0.04341874,97529.0,97488.0,0.00013722]
[1763095409630,0.36641874,97497.0,97488.0,0.00013722]
[1763095410075,0.04341874,97493.0,97430.0,0.01026377]
[1763095410294,0.09726,97496.0,97430.0,0.00045805]
[1763095410295,0.04341874,97479.0,97430.0,0.00045805]
[1763095410447,0.04341874,97477.0,97440.0,0.01026272]
[1763095410643,0.14255874,97477.0,97430.0,0.01072182]
[1763095410848,0.14255874,97477.0,97476.0,0.17581447]
[1763095411099,0.86517228,97520.0,97476.0,0.17581447]
[1763095411300,2.0,97518.0,97476.0,0.20517817]
[1763095411524,2.0,97516.0,97480.0,0.01025851]
[1763095411747,0.323,97515.0,97484.0,0.20516187]
[1763095411952,0.1006426,97536.0,97497.0,0.20513384]
[1763095412163,0.00013712,97515.0,97507.0,0.20511178]
[1763095412337,0.00013712,97515.0,97500.0,0.87542869]
[1763095412338,0.00013712,97515.0,97510.0,0.30574917]
[1763095412536,0.00013712,97515.0,97512.0,0.20510188]
[1763095413553,0.00013712,97515.0,97514.0,0.20509875]
[1763095415366,0.00013712,97515.0,97514.0,0.20809875]
[1763095415732,0.00013712,97515.0,97514.0,0.21823178]
[1763095416030,0.00013712,97515.0,97514.0,0.21523178]
[1763095416154,0.00013712,97515.0,97514.0,0.21823178]
[1763095416361,8.358e-05,97550.0,97549.0,0.20502516]
[1763095416578,8.358e-05,97550.0,97525.0,0.30761168]
[1763095416579,0.00022078,97550.0,97545.0,0.20503292]
[1763095416778,0.00022078,97550.0,97549.0,0.1006426]
[1763095417020,0.00022078,97550.0,97549.0,0.2763255]
[1763095418500,0.00022078,97550.0,97549.0,0.2783255]
[1763095418703,0.0024,97582.0,97550.0,0.323]
[1763095418901,0.00285723,97582.0,97581.0,0.20495793]
[1763095419719,0.00285723,97582.0,97580.0,0.00027]
[1763095419924,0.00285723,97582.0,97580.0,0.20495839]
[1763095420130,0.00285723,97582.0,97581.0,0.1006426]
[1763095420331,0.06120273,97661.0,97646.0,0.20482]
[1763095420544,0.00033724,97650.0,97620.0,0.0102438]
[1763095420745,0.00033724,97650.0,97620.0,0.87541608]
[1763095420950,0.00033724,97650.0,97628.0,0.2048572]
[1763095421154,0.00033724,97650.0,97640.0,0.86517228]
[1763095421574,0.00033724,97650.0,97624.0,0.1006426]
[1763095421795,0.00033724,97650.0,97640.0,0.86517228]
[1763095422004,0.00033724,97650.0,97624.0,0.1006426]
[1763095422215,0.00033724,97650.0,97647.0,0.20481928]
[1763095422417,0.00033724,97650.0,97640.0,0.86517228]
[1763095422642,0.00033724,97650.0,97649.0,0.2048152]
[1763095422917,0.09914,97707.0,97670.0,0.86517228]
[1763095423088,0.09959714,97707.0,97660.0,0.87541188]
[1763095423289,0.09959714,97707.0,97670.0,0.86517228]
[1763095423290,2.0,97706.0,97670.0,0.86517228]
[1763095423559,0.09959714,97707.0,97680.0,0.86517228]
[1763095423947,0.00045714,97707.0,97677.0,0.20475499]
[1763095424092,0.00045714,97707.0,97680.0,0.20474913]
[1763095424288,0.00045714,97707.0,97671.0,0.1006426]
[1763095424734,0.00045714,97707.0,97677.0,0.20475581]
[1763095424932,0.00045714,97707.0,97706.0,0.17540061]
[1763095425137,0.00045714,97707.0,97706.0,0.07540061]
[1763095425391,0.00045714,97707.0,97706.0,0.02267061]
[1763095426821,0.00045714,97707.0,97663.0,0.1006426]
[1763095426822,2.0,97706.0,97663.0,0.1006426]
[1763095427026,2.0,97706.0,97629.0,0.04937]
[1763095427027,0.36641874,97679.0,97629.0,0.04937]
[1763095427253,0.36641874,97674.0,97630.0,0.01024275]
[1763095427455,0.14535,97688.0,97650.0,0.86517228]
[1763095427658,0.04341874,97687.0,97660.0,0.86517228]
[1763095427868,0.1006426,97697.0,97670.0,0.87541083]
[1763095428152,0.04341874,97712.0,97682.0,0.20474434]
[1763095428356,0.09814,97727.0,97690.0,0.86517228]
[1763095428357,0.1006426,97709.0,97690.0,0.86517228]
[1763095428569,0.1006426,97709.0,97685.0,0.20473867]
[1763095428778,0.1006426,97709.0,97682.0,0.20474419]
[1763095428779,0.323,97708.0,97682.0,0.20474419]
[1763095429031,0.04341874,97707.0,97682.0,0.20474419]
[1763095429336,0.002,97697.0,97683.0,0.09588]
[1763095429536,0.002,97697.0,97695.0,0.20471728]
[1763095429741,0.002,97697.0,97690.0,0.86517228]
[1763095429742,0.002,97697.0,97693.0,0.20472137]
[1763095429946,0.002,97697.0,97695.0,0.20471734]
[1763095430150,0.002,97697.0,97695.0,0.20471876]
[1763095430421,0.00065714,97710.0,97696.0,0.1965226]
[1763095431229,0.00065714,97710.0,97709.0,0.03824]
[1763095432051,0.00065714,97710.0,97709.0,0.06253395]
[1763095432256,0.00065714,97710.0,97709.0,0.03824]
[1763095433522,0.00065714,97710.0,97709.0,0.24292943]
[1763095434175,2.0,97779.0,97750.0,0.01023017]
[1763095434368,0.00013721,97779.0,97751.0,0.03488]
[1763095434571,0.01007798,97778.0,97751.0,0.13076]
[1763095434804,0.01007798,97778.0,97766.0,0.20456869]
[1763095435010,0.09923,97798.0,97752.0,0.09588]
[1763095435011,2.0,97797.0,97765.0,0.04937]
[1763095435222,2.0,97797.0,97765.0,0.00013721]
[1763095435223,0.09914,97797.0,97765.0,0.00013721]
[1763095435451,0.86517228,97780.0,97765.0,0.00013721]
[1763095435661,2.0,97776.0,97765.0,0.00013721]
[1763095435879,0.323,97772.0,97765.0,0.00013721]
[1763095436089,0.04341874,97771.0,97765.0,0.00013721]
[1763095436288,0.323,97769.0,97765.0,0.00013721]
[1763095436494,0.36641874,97766.0,97765.0,0.00013721]
[1763095436697,2.36641874,97766.0,97765.0,0.00013721]
[1763095436835,2.4649021,97766.0,97765.0,0.00013721]
[1763095437245,0.4649021,97766.0,97765.0,0.00013721]
[1763095437450,0.323,97779.0,97765.0,0.00013721]
[1763095437921,0.04341874,97778.0,97765.0,0.00013721]
[1763095438172,0.91238228,97800.0,97770.0,0.01022808]
[1763095438322,0.19188083,97799.0,97770.0,0.01022808]
[1763095438538,0.1006426,97799.0,97765.0,0.19665981]
[1763095438870,0.323,97798.0,97765.0,0.19665981]
[1763095439003,0.0002,97810.0,97780.0,0.01022704]
[1763095439211,0.0002,97810.0,97781.0,0.20453871]
[1763095439413,0.0002,97810.0,97783.0,0.20453453]
[1763095439614,0.0002,97810.0,97784.0,0.09588]
[1763095439814,0.0002,97810.0,97787.0,0.20452411]
[1763095440050,0.0002,97810.0,97784.0,0.09588]
[1763095440281,0.0002,97810.0,97790.0,0.86517228]
[1763095440483,0.0002,97810.0,97809.0,0.03488]
[1763095440689,0.0002,97810.0,97784.0,0.09588]
[1763095440690,0.0002,97810.0,97784.0,0.001]
[1763095440900,0.1006426,97796.0,97784.0,0.001]
[1763095441105,0.86517228,97800.0,97784.0,0.001]
[1763095441106,0.36641874,97795.0,97784.0,0.001]
[1763095441332,0.0002,97810.0,97785.0,0.09398]
[1763095441784,0.00065649,97810.0,97802.0,0.20449411]
[1763095441983,0.1006426,97803.0,97790.0,0.002]
[1763095442275,0.04341874,97798.0,97790.0,0.002]
[1763095442897,0.02625688,97889.0,97791.0,0.09398]
[1763095443109,0.1006426,97899.0,97809.0,0.03605]
[1763095443110,0.09501,97860.0,97809.0,0.03605]
[1763095443312,0.6006426,97874.0,97830.0,0.01022181]
[1763095443520,0.00013702,97874.0,97840.0,0.01022076]
[1763095443719,0.86517228,97870.0,97831.0,0.09398]
[1763095443928,0.00013702,97874.0,97840.0,0.21463532]
[1763095444101,0.00013702,97874.0,97831.0,0.09398]
[1763095444312,0.323,97869.0,97831.0,0.09398]
[1763095444514,0.00013702,97874.0,97840.0,0.01022076]
[1763095444693,0.00113702,97874.0,97841.0,0.1006426]
[1763095444910,0.86517228,97870.0,97841.0,0.1006426]
[1763095445286,0.1006426,97848.0,97799.0,0.09398]
[1763095445488,0.04341874,97847.0,97821.0,0.1006426]
[1763095445711,0.00013702,97874.0,97821.0,0.1006426]
[1763095445712,0.323,97859.0,97821.0,0.1006426]
[1763095445915,0.04341874,97858.0,97836.0,0.1006426]
[1763095446334,0.04341874,97858.0,97837.0,0.1006426]
[1763095446541,0.04341874,97858.0,97838.0,0.1006426]
[1763095446785,0.04341874,97868.0,97838.0,0.1006426]
[1763095446988,0.04341874,97868.0,97843.0,0.20440713]
[1763095447197,0.00013702,97874.0,97839.0,0.09783]
[1763095447388,0.1006426,97872.0,97839.0,0.09783]
[1763095447808,0.00013702,97874.0,97853.0,0.1006426]
[1763095447809,0.323,97871.0,97853.0,0.1006426]
[1763095448013,0.04341874,97868.0,97838.0,0.1006426]
[1763095448190,0.09057,97873.0,97838.0,0.1006426]
[1763095448191,0.04858,97892.0,97848.0,0.20439676]
[1763095448444,0.04858,97892.0,97840.0,0.87539304]
[1763095448654,0.04858,97892.0,97853.0,0.20438806]
[1763095448856,0.04858,97892.0,97856.0,0.20438084]
[1763095449057,0.04858,97892.0,97851.0,0.20439115]
[1763095449267,0.04858,97892.0,97858.0,0.1006426]
[1763095449268,0.1006426,97891.0,97858.0,0.1006426]
[1763095449454,0.1006426,97891.0,97847.0,0.20439931]
[1763095449455,0.1006426,97891.0,97854.0,0.1006426]
[1763095449614,0.1006426,97891.0,97853.0,0.1006426]
[1763095449615,0.323,97890.0,97853.0,0.1006426]
[1763095449801,0.1006426,97873.0,97848.0,0.2043974]
[1763095449986,0.36641874,97872.0,97832.0,0.20443104]
[1763095450212,0.36641874,97872.0,97837.0,0.1006426]
[1763095450431,0.36641874,97872.0,97840.0,0.01022076]
[1763095450685,0.36641874,97872.0,97847.0,0.20439958]
[1763095450883,0.36641874,97872.0,97841.0,0.09783]
[1763095451029,0.36641874,97872.0,97828.0,0.09783]
[1763095451242,0.36641874,97856.0,97832.0,0.001]
[1763095451440,0.04341874,97849.0,97832.0,0.001]
[1763095451644,0.04341874,97849.0,97812.0,0.1006426]
[1763095451999,0.04341874,97847.0,97814.0,0.1006426]
[1763095452130,0.36641874,97847.0,97841.0,0.001]
[1763095452332,0.36641874,97845.0,97841.0,0.001]
[1763095452537,0.36641874,97850.0,97841.0,0.001]
[1763095452736,0.36641874,97848.0,97841.0,0.001]
[1763095453031,0.36641874,97846.0,97841.0,0.001]
[1763095453228,2.04341874,97843.0,97800.0,0.01235]
[1763095453490,0.05571874,97801.0,97800.0,0.01235]
[1763095453914,0.04341874,97801.0,97800.0,0.01235]
[1763095454411,0.1006426,97808.0,97730.0,0.01871779]
[1763095454412,0.04341874,97779.0,97737.0,0.20462901]
[1763095454636,0.36641874,97779.0,97749.0,0.00045649]
[1763095454869,0.04341874,97761.0,97749.0,0.00045649]
[1763095455105,0.86517228,97760.0,97749.0,0.00045649]
[1763095455358,0.04591,97750.0,97749.0,0.00045649]
[1763095455602,0.08932874,97750.0,97749.0,0.00045649]
[1763095456203,2.41232874,97750.0,97749.0,0.00045649]
[1763095456733,2.36641874,97750.0,97749.0,0.00145649]
[1763095457143,2.36641874,97750.0,97749.0,0.00045649]
[1763095457619,2.36741874,97750.0,97749.0,0.00045649]
[1763095457860,0.36641874,97747.0,97710.0,0.0004]
[1763095458083,0.36641874,97729.0,97710.0,0.00053721]
[1763095460166,0.04341874,97713.0,97710.0,0.00053721]
[1763095460378,0.1006426,97739.0,97710.0,0.00053721]
[1763095460581,0.1006426,97739.0,97722.0,0.20466071]
[1763095460830,0.86517228,97770.0,97720.0,0.01023331]
[1763095461041,0.1006426,97746.0,97726.0,0.30529553]
[1763095461253,0.1006426,97746.0,97728.0,0.20464784]
[1763095461456,0.1006426,97746.0,97721.0,0.03793]
[1763095461662,0.04341874,97745.0,97722.0,0.2046622]
[1763095461836,0.04341874,97745.0,97721.0,0.03793]
[1763095462046,0.1006426,97744.0,97726.0,0.20465232]
[1763095462251,0.04341874,97743.0,97727.0,0.1006426]
[1763095462454,0.1006426,97742.0,97710.0,0.00153721]
[1763095462657,0.04341874,97738.0,97710.0,0.00153721]
[1763095463197,0.36641874,97736.0,97710.0,0.00053721]
[1763095463404,0.36641874,97729.0,97710.0,0.00053721]
[1763095463829,0.04341874,97727.0,97710.0,0.00053721]
[1763095464246,0.04341874,97719.0,97710.0,0.00053721]
[1763095464648,0.04341874,97723.0,97710.0,0.00053721]
[1763095464862,0.04341874,97719.0,97710.0,0.00053721]
[1763095465064,0.04341874,97719.0,97710.0,0.00153721]
[1763095465215,0.46706134,97711.0,97710.0,0.00153721]
[1763095465822,0.55749575,97711.0,97710.0,0.00153721]
[1763095466227,0.55749575,97711.0,97710.0,0.00053721]
[1763095467090,2.46692575,97711.0,97710.0,0.00053721]
[1763095467606,2.46692575,97711.0,97655.0,0.20480078]
[1763095467789,0.04341874,97668.0,97625.0,0.09783]
[1763095467927,0.04341874,97668.0,97620.0,0.0102438]
[1763095468119,0.04341874,97666.0,97621.0,0.24311185]
[1763095468365,0.04341874,97666.0,97621.0,0.03824]
[1763095468589,0.04341874,97646.0,97624.0,0.30550838]
[1763095468792,0.04341874,97644.0,97621.0,0.03824]
[1763095468989,0.1006426,97662.0,97627.0,0.1006426]
[1763095468990,0.04341874,97660.0,97627.0,0.1006426]
[1763095469166,0.04341874,97660.0,97636.0,0.20484247]
[1763095469384,0.36641874,97676.0,97640.0,0.0102417]
[1763095469745,0.36641874,97676.0,97643.0,0.20482776]
[1763095470027,0.1006426,97653.0,97631.0,0.09783]
[1763095470233,0.04341874,97652.0,97631.0,0.1984726]
[1763095470441,0.1006426,97658.0,97618.0,0.09259]
[1763095470442,0.04341874,97657.0,97618.0,0.09259]
[1763095470644,0.04341874,97657.0,97630.0,0.20485312]
[1763095470856,0.04341874,97649.0,97625.0,0.1006426]